[Event "DVM U10 2024"]
[Site "Duesseldorf"]
[Date "2024.12.27"]
[Round "2"]
[White "Saloum, Michael"]
[Black "Peters, Leopold"]
[Result "1-0"]
[ECO "C00"]
[WhiteElo "1067"]
[BlackElo "1701"]
[Annotator "NA RC"]
[PlyCount "41"]
[EventDate "2024.12.23"]
[EventType "team-tourn"]
[EventRounds "7"]
[EventCountry "GER"]
[SourceTitle "playchess.com"]
[Source "ChessBase"]
[SourceQuality "1"]
[TimeControl "3300+5"]

1. e4 {[%emt 0:00:07]} e6 {[%emt 0:00:05]} 2. Nf3 {[%emt 0:00:11]} d5 {[%emt 0:00:07]} 3. Nc3 {[%emt 0:08:53]} Nf6 {[%emt 0:01:55]} 4. d3 {[%emt 0:03:05]} Bb4 {[%emt 0:02:11]} 5. Bd2 {[%emt 0:03:00]} O-O {[%emt 0:01:38]} 6. g3 {[%emt 0:01:01]} Bxc3 {[%emt 0:01:37]} 7. Bxc3 {[%emt 0:01:13]} dxe4 {[%emt 0:00:27]} 8. Bxf6 {[%emt 0:00:45]} Qxf6 {[%emt 0:00:33]} 9. dxe4 {[%emt 0:00:15]} Rd8 {[%emt 0:00:48]} 10. Bd3 {[%emt 0:09:21]} Qxb2 {[%emt 0:01:30]} 11. O-O {[%emt 0:00:09]} Nc6 {[%emt 0:00:39]} 12. e5 {[%emt 0:00:27]} b6 {[%emt 0:01:51]} 13. Re1 {[%emt 0:03:16]} Bb7 {[%emt 0:01:48]} 14. Ng5 {[%emt 0:02:04]} h6 {[%emt 0:02:08]} 15. Nf3 {[%emt 0:03:18]} Rd7 {[%emt 0:01:42]} 16. Bh7+ {[%emt 0:01:12]} Kxh7 {[%emt 0:02:16]} 17. Qxd7 {[%emt 0:01:28]} Rc8 {[%emt 0:04:28]} 18. Qxf7 {[%emt 0:00:52]} Qc3 {[%emt 0:01:14]} 19. Nh4 {[%emt 0:01:27]} Nxe5 {[%emt 0:01:26]} 20. Qxe6 {[%emt 0:02:45]} Ng4 {[%emt 0:02:23]} 21. Nf3 {[%emt 0:00:20]} 1-0

[Event "DVM U10 2024"]
[Site "Duesseldorf"]
[Date "2024.12.27"]
[Round "2"]
[White "Bauta, Luan"]
[Black "Kukhtichev, Maksim"]
[Result "1/2-1/2"]
[ECO "C54"]
[WhiteElo "1063"]
[BlackElo "1639"]
[Annotator "NA RC"]
[PlyCount "95"]
[EventDate "2024.12.23"]
[EventType "team-tourn"]
[EventRounds "7"]
[EventCountry "GER"]
[SourceTitle "playchess.com"]
[Source "ChessBase"]
[SourceQuality "1"]
[TimeControl "3300+5"]

1. e4 {[%emt 0:00:04]} e5 {[%emt 0:00:10]} 2. Nf3 {[%emt 0:00:15]} Nc6 {[%emt 0:00:04]} 3. Bc4 {[%emt 0:00:17]} Bc5 {[%emt 0:00:26]} 4. c3 {[%emt 0:00:09]} Nf6 {[%emt 0:00:05]} 5. d4 {[%emt 0:00:07]} exd4 {[%emt 0:00:05]} 6. cxd4 {[%emt 0:00:07]} Bb4+ {[%emt 0:00:05]} 7. Bd2 {[%emt 0:00:04]} Bxd2+ {[%emt 0:00:12]} 8. Nbxd2 {[%emt 0:00:19]} O-O {[%emt 0:00:11]} 9. O-O {[%emt 0:00:12]} d6 {[%emt 0:00:34]} 10. Re1 {[%emt 0:00:15]} Bg4 {[%emt 0:00:12]} 11. h3 {[%emt 0:00:07]} Bh5 {[%emt 0:00:07]} 12. Nf1 {[%emt 0:00:24]} Bxf3 {[%emt 0:00:17]} 13. Qxf3 {[%emt 0:00:15]} Nxd4 {[%emt 0:00:07]} 14. Qd3 {[%emt 0:00:32]} Nc6 {[%emt 0:00:06]} 15. Rad1 {[%emt 0:00:14]} Ne5 {[%emt 0:00:31]} 16. Qe2 {[%emt 0:00:28]} Nxc4 {[%emt 0:00:09]} 17. Qxc4 {[%emt 0:00:10]} Re8 {[%emt 0:00:04]} 18. Ng3 {[%emt 0:00:16]} Nd7 {[%emt 0:00:08]} 19. Qc3 {[%emt 0:02:20]} Nb6 {[%emt 0:01:00]} 20. Nf5 {[%emt 0:01:54]} f6 {[%emt 0:00:50]} 21. Qg3 {[%emt 0:00:40]} g6 {[%emt 0:00:25]} 22. Nh6+ {[%emt 0:02:35]} Kg7 {[%emt 0:00:14]} 23. Nf5+ {[%emt 0:00:10]} Kf8 {[%emt 0:00:27]} 24. Nh6 {[%emt 0:01:22]} Qd7 {[%emt 0:01:11]} 25. Qh4 {[%emt 0:06:02]} Qg7 {[%emt 0:01:02]} 26. Ng4 {[%emt 0:00:39]} Nd7 {[%emt 0:01:44]} 27. Re3 {[%emt 0:00:29]} Re7 {[%emt 0:00:12]} 28. Rde1 {[%emt 0:00:36]} Ne5 {[%emt 0:00:25]} 29. Nxe5 {[%emt 0:00:18]} dxe5 {[%emt 0:00:07]} 30. Rf3 {[%emt 0:01:25]} Re6 {[%emt 0:00:26]} 31. Rd1 {[%emt 0:01:57]} Ke7 {[%emt 0:00:33]} 32. Rd5 {[%emt 0:00:59]} Rd8 {[%emt 0:00:54]} 33. Rxd8 {[%emt 0:00:28]} Kxd8 {[%emt 0:00:05]} 34. Rd3+ {[%emt 0:00:52]} Rd6 {[%emt 0:00:06]} 35. Rxd6+ {[%emt 0:00:30]} cxd6 {[%emt 0:00:05]} 36. Qg3 {[%emt 0:00:46]} Qf7 {[%emt 0:01:14]} 37. Qa3 {[%emt 0:00:23]} Qc7 {[%emt 0:00:38]} 38. Qxa7 {[%emt 0:00:16]} Qc1+ {[%emt 0:00:18]} 39. Kh2 {[%emt 0:00:06]} Qxb2 {[%emt 0:00:08]} 40. Qb8+ {[%emt 0:00:39]} Kd7 {[%emt 0:00:06]} 41. Qh8 {[%emt 0:00:05]} Qxf2 {[%emt 0:00:28]} 42. Qxh7+ {[%emt 0:00:14]} Ke6 {[%emt 0:00:07]} 43. Qxg6 {[%emt 0:00:49]} Qf4+ {[%emt 0:00:22]} 44. Kh1 {[%emt 0:00:29]} Kd7 {[%emt 0:00:24]} 45. Qf7+ {[%emt 0:00:21]} Kc6 {[%emt 0:00:07]} 46. Qd5+ {[%emt 0:00:09]} Kc7 {[%emt 0:00:44]} 47. Qf7+ {[%emt 0:00:35]} Kb8 {[%emt 0:02:06]} 48. Qe8+ {[%emt 0:00:07]} 1/2-1/2

[Event "DVM U10 2024"]
[Site "Duesseldorf"]
[Date "2024.12.27"]
[Round "2"]
[White "Hornych, Fridtjof"]
[Black "Stopp, Bruno"]
[Result "0-1"]
[ECO "C60"]
[WhiteElo "1053"]
[BlackElo "1519"]
[Annotator "NA RC"]
[PlyCount "74"]
[EventDate "2024.12.23"]
[EventType "team-tourn"]
[EventRounds "7"]
[EventCountry "GER"]
[SourceTitle "playchess.com"]
[Source "ChessBase"]
[SourceQuality "1"]
[TimeControl "3300+5"]

1. e4 {[%emt 0:00:01]} e5 {[%emt 0:00:02]} 2. Nf3 {[%emt 0:00:06]} Nc6 {[%emt 0:00:03]} 3. Bb5 {[%emt 0:00:14]} Nge7 {[%emt 0:00:02]} 4. O-O {[%emt 0:00:16]} g6 {[%emt 0:00:16]} 5. Nc3 {[%emt 0:00:17]} Bg7 {[%emt 0:00:05]} 6. d3 {[%emt 0:00:31]} O-O {[%emt 0:00:07]} 7. Be3 {[%emt 0:00:14]} d5 {[%emt 0:01:36]} 8. Bxc6 {[%emt 0:00:25]} bxc6 {[%emt 0:00:08]} 9. exd5 {[%emt 0:01:21]} cxd5 {[%emt 0:00:22]} 10. d4 {[%emt 0:00:33]} exd4 {[%emt 0:02:15]} 11. Bxd4 {[%emt 0:00:20]} Bg4 {[%emt 0:01:15]} 12. Bxg7 {[%emt 0:00:19]} Kxg7 {[%emt 0:00:24]} 13. Qd4+ {[%emt 0:00:18]} Kg8 {[%emt 0:00:43]} 14. Qxg4 {[%emt 0:00:11]} Rb8 {[%emt 0:00:15]} 15. Rab1 {[%emt 0:00:23]} c5 {[%emt 0:00:34]} 16. Ne2 {[%emt 0:00:40]} Rb4 {[%emt 0:00:18]} 17. Qh3 {[%emt 0:02:02]} Nf5 {[%emt 0:00:29]} 18. Ng3 {[%emt 0:01:05]} Nd4 {[%emt 0:02:49]} 19. Nxd4 {[%emt 0:01:45]} Rxd4 {[%emt 0:00:18]} 20. Ne2 {[%emt 0:01:10]} Rd2 {[%emt 0:00:07]} 21. Qf3 {[%emt 0:02:39]} Re8 {[%emt 0:00:29]} 22. Ng3 {[%emt 0:01:25]} Rxc2 {[%emt 0:00:31]} 23. Rfd1 {[%emt 0:00:32]} d4 {[%emt 0:02:13]} 24. Ne4 {[%emt 0:00:54]} f5 {[%emt 0:04:01]} 25. Ng3 {[%emt 0:00:50]} c4 {[%emt 0:02:44]} 26. Rbc1 {[%emt 0:03:02]} Rxc1 {[%emt 0:03:07]} 27. Rxc1 {[%emt 0:00:29]} d3 {[%emt 0:00:05]} 28. Nf1 {[%emt 0:07:44]} Re2 {[%emt 0:07:04]} 29. Nd2 {[%emt 0:01:23]} Rxd2 {[%emt 0:00:30]} 30. b3 {[%emt 0:03:34]} Rc2 {[%emt 0:00:56]} 31. Rd1 {[%emt 0:01:22]} c3 {[%emt 0:01:06]} 32. h3 {[%emt 0:01:18]} d2 {[%emt 0:00:41]} 33. Kf1 {[%emt 0:01:14]} Rc1 {[%emt 0:06:17]} 34. Ke2 {[%emt 0:01:01]} c2 {[%emt 0:01:28]} 35. Rxd2 {[%emt 0:01:20]} Re1+ {[%emt 0:00:23]} 36. Kxe1 {[%emt 0:00:36]} c1=Q+ {[%emt 0:00:24]} 37. Rd1 {[%emt 0:00:39]} Qdd2+ {[%emt 0:00:15]} 0-1

[Event "DVM U10 2024"]
[Site "Duesseldorf"]
[Date "2024.12.27"]
[Round "2"]
[White "Hübner, Jakob"]
[Black "Naveen, Yuvaan"]
[Result "1-0"]
[ECO "A48"]
[WhiteElo "1045"]
[BlackElo "1110"]
[Annotator "NA RC"]
[PlyCount "157"]
[EventDate "2024.12.23"]
[EventType "team-tourn"]
[EventRounds "7"]
[EventCountry "GER"]
[SourceTitle "playchess.com"]
[Source "ChessBase"]
[SourceQuality "1"]
[TimeControl "3300+5"]

1. d4 {[%emt 0:00:03]} Nf6 {[%emt 0:00:05]} 2. Nf3 {[%emt 0:00:11]} g6 {[%emt 0:00:09]} 3. Bf4 {[%emt 0:00:10]} Bg7 {[%emt 0:00:11]} 4. e3 {[%emt 0:00:07]} d6 {[%emt 0:00:10]} 5. Be2 {[%emt 0:00:09]} Bg4 {[%emt 0:00:15]} 6. h3 {[%emt 0:00:12]} Bxf3 {[%emt 0:00:20]} 7. Bxf3 {[%emt 0:00:15]} Nbd7 {[%emt 0:00:48]} 8. Bxb7 {[%emt 0:00:17]} Rb8 {[%emt 0:00:14]} 9. Bc6 {[%emt 0:00:12]} O-O {[%emt 0:01:20]} 10. c4 {[%emt 0:00:20]} e5 {[%emt 0:00:21]} 11. dxe5 {[%emt 0:00:38]} dxe5 {[%emt 0:00:09]} 12. Bh2 {[%emt 0:00:23]} Rb6 {[%emt 0:01:04]} 13. Bb5 {[%emt 0:00:23]} a6 {[%emt 0:00:31]} 14. Ba4 {[%emt 0:00:16]} Rd6 {[%emt 0:00:25]} 15. Qc2 {[%emt 0:00:22]} Nc5 {[%emt 0:00:36]} 16. Nc3 {[%emt 0:00:31]} Nd3+ {[%emt 0:00:16]} 17. Ke2 {[%emt 0:00:21]} Nb4 {[%emt 0:00:28]} 18. Qb3 {[%emt 0:00:30]} Rd2+ {[%emt 0:00:13]} 19. Ke1 {[%emt 0:00:51]} Nd3+ {[%emt 0:00:27]} 20. Kf1 {[%emt 0:00:42]} Rxf2+ {[%emt 0:00:13]} 21. Kg1 {[%emt 0:00:50]} Qa8 {[%emt 0:00:25]} 22. Nd5 {[%emt 0:00:21]} e4 {[%emt 0:01:15]} 23. Nxc7 {[%emt 0:00:38]} Qa7 {[%emt 0:01:13]} 24. Re1 {[%emt 0:01:08]} Nxe1 {[%emt 0:00:13]} 25. Kxf2 {[%emt 0:00:25]} Nd3+ {[%emt 0:00:50]} 26. Ke2 {[%emt 0:00:31]} Nc5 {[%emt 0:00:42]} 27. Qa3 {[%emt 0:00:45]} Nd3 {[%emt 0:01:31]} 28. Bc2 {[%emt 0:00:55]} Rd8 {[%emt 0:02:06]} 29. Qe7 {[%emt 0:00:35]} Rd7 {[%emt 0:00:45]} 30. Qa3 {[%emt 0:00:46]} Rxc7 {[%emt 0:01:50]} 31. Bxc7 {[%emt 0:00:13]} Qxc7 {[%emt 0:00:05]} 32. Bxd3 {[%emt 0:00:34]} exd3+ {[%emt 0:00:08]} 33. Qxd3 {[%emt 0:01:08]} Qd7 {[%emt 0:00:59]} 34. Qxd7 {[%emt 0:00:15]} Nxd7 {[%emt 0:00:05]} 35. b4 {[%emt 0:00:17]} Kf8 {[%emt 0:00:08]} 36. c5 {[%emt 0:00:06]} Ke8 {[%emt 0:00:18]} 37. Rc1 {[%emt 0:00:10]} Kd8 {[%emt 0:00:39]} 38. a4 {[%emt 0:00:30]} Kc8 {[%emt 0:00:10]} 39. b5 {[%emt 0:00:08]} axb5 {[%emt 0:00:09]} 40. axb5 {[%emt 0:00:19]} Be5 {[%emt 0:00:21]} 41. c6 {[%emt 0:00:09]} Nb6 {[%emt 0:00:19]} 42. Kd3 {[%emt 0:00:57]} Kc7 {[%emt 0:01:34]} 43. Ke4 {[%emt 0:00:43]} f6 {[%emt 0:00:12]} 44. Rc2 {[%emt 0:00:32]} Kd6 {[%emt 0:00:43]} 45. c7 {[%emt 0:00:11]} Kd7 {[%emt 0:00:07]} 46. Rc6 {[%emt 0:01:08]} Bxc7 {[%emt 0:00:52]} 47. Rxf6 {[%emt 0:00:14]} Nc4 {[%emt 0:00:32]} 48. Kd4 {[%emt 0:00:43]} Be5+ {[%emt 0:00:21]} 49. Kxc4 {[%emt 0:00:45]} Bxf6 {[%emt 0:00:07]} 50. Kc5 {[%emt 0:01:23]} Kc7 {[%emt 0:00:09]} 51. b6+ {[%emt 0:00:30]} Kb7 {[%emt 0:00:05]} 52. e4 {[%emt 0:00:49]} Bd8 {[%emt 0:00:15]} 53. e5 {[%emt 0:00:28]} Bxb6+ {[%emt 0:00:39]} 54. Kd6 {[%emt 0:01:41]} Kc8 {[%emt 0:00:00]} 55. Kc6 {[%emt 0:01:18]} Bc7 {[%emt 0:00:00]} 56. e6 {[%emt 0:00:19]} Kd8 {[%emt 0:00:00]} 57. e7+ {[%emt 0:00:23]} Kxe7 {[%emt 0:00:00]} 58. Kxc7 {[%emt 0:00:34]} Kf6 {[%emt 0:00:03]} 59. Kd6 {[%emt 0:00:36]} h5 {[%emt 0:00:20]} 60. g3 {[%emt 0:02:14]} g5 {[%emt 0:00:00]} 61. Kd5 {[%emt 0:00:58]} Kf5 {[%emt 0:00:06]} 62. Kd4 {[%emt 0:00:24]} g4 {[%emt 0:00:08]} 63. h4 {[%emt 0:01:02]} Kg6 {[%emt 0:00:31]} 64. Ke4 {[%emt 0:00:14]} Kf6 {[%emt 0:00:11]} 65. Kf4 {[%emt 0:00:06]} Kg6 {[%emt 0:00:08]} 66. Ke5 {[%emt 0:00:33]} Kf7 {[%emt 0:00:22]} 67. Kf5 {[%emt 0:00:28]} Ke7 {[%emt 0:00:06]} 68. Kg5 {[%emt 0:00:25]} Ke6 {[%emt 0:00:09]} 69. Kxh5 {[%emt 0:00:29]} Kf5 {[%emt 0:00:04]} 70. Kh6 {[%emt 0:00:38]} Ke4 {[%emt 0:00:05]} 71. Kg5 {[%emt 0:01:00]} Kf3 {[%emt 0:00:04]} 72. h5 {[%emt 0:00:31]} Kxg3 {[%emt 0:00:03]} 73. h6 {[%emt 0:00:24]} Kh3 {[%emt 0:00:02]} 74. h7 {[%emt 0:00:16]} g3 {[%emt 0:00:20]} 75. h8=Q+ {[%emt 0:00:30]} Kg2 {[%emt 0:00:00]} 76. Kf4 {[%emt 0:01:13]} Kf2 {[%emt 0:00:00]} 77. Qb2+ {[%emt 0:00:31]} Kg1 {[%emt 0:00:06]} 78. Kxg3 {[%emt 0:00:33]} Kf1 {[%emt 0:00:06]} 79. Qf2# {[%emt 0:00:22]} 1-0

[Event "DVM U10 2024"]
[Site "Duesseldorf"]
[Date "2024.12.27"]
[Round "2"]
[White "Pahl, Eirik"]
[Black "Widlitzek, Philipp"]
[Result "1-0"]
[ECO "D06"]
[WhiteElo "1010"]
[BlackElo "860"]
[Annotator "NA RC"]
[PlyCount "129"]
[EventDate "2024.12.23"]
[EventType "team-tourn"]
[EventRounds "7"]
[EventCountry "GER"]
[SourceTitle "playchess.com"]
[Source "ChessBase"]
[SourceQuality "1"]
[TimeControl "3300+5"]

1. d4 {[%emt 0:00:02]} d5 {[%emt 0:00:04]} 2. c4 {[%emt 0:00:05]} Nf6 {[%emt 0:00:20]} 3. cxd5 {[%emt 0:00:34]} Nxd5 {[%emt 0:00:08]} 4. e4 {[%emt 0:00:32]} Nf6 {[%emt 0:00:12]} 5. Nc3 {[%emt 0:00:59]} Nc6 {[%emt 0:00:14]} 6. Nf3 {[%emt 0:01:17]} Bg4 {[%emt 0:00:51]} 7. d5 {[%emt 0:01:11]} Ne5 {[%emt 0:00:24]} 8. Be2 {[%emt 0:01:07]} e6 {[%emt 0:00:19]} 9. Nxe5 {[%emt 0:01:07]} Bxe2 {[%emt 0:00:25]} 10. Qxe2 {[%emt 0:01:03]} Bb4 {[%emt 0:00:17]} 11. Qb5+ {[%emt 0:00:49]} c6 {[%emt 0:00:09]} 12. Qxb4 {[%emt 0:01:11]} exd5 {[%emt 0:01:23]} 13. Qxb7 {[%emt 0:04:50]} O-O {[%emt 0:00:00]} 14. Qxc6 {[%emt 0:02:03]} dxe4 {[%emt 0:00:03]} 15. O-O {[%emt 0:00:33]} Qd4 {[%emt 0:00:25]} 16. Nc4 {[%emt 0:00:54]} Rac8 {[%emt 0:00:21]} 17. Rd1 {[%emt 0:01:04]} Qxd1+ {[%emt 0:00:27]} 18. Nxd1 {[%emt 0:00:36]} Rxc6 {[%emt 0:00:06]} 19. Ne5 {[%emt 0:02:24]} Rd6 {[%emt 0:00:23]} 20. Bf4 {[%emt 0:00:27]} Rfd8 {[%emt 0:00:19]} 21. Nc3 {[%emt 0:00:28]} Nd5 {[%emt 0:00:57]} 22. Nxf7 {[%emt 0:02:20]} Kxf7 {[%emt 0:00:12]} 23. Bxd6 {[%emt 0:00:28]} Nxc3 {[%emt 0:00:32]} 24. bxc3 {[%emt 0:00:00]} Rxd6 {[%emt 0:00:22]} 25. g3 {[%emt 0:00:09]} Rc6 {[%emt 0:00:13]} 26. Re1 {[%emt 0:00:16]} Rc4 {[%emt 0:00:17]} 27. Rd1 {[%emt 0:00:43]} Rxc3 {[%emt 0:00:11]} 28. Rd7+ {[%emt 0:00:10]} Kf6 {[%emt 0:00:10]} 29. Rxa7 {[%emt 0:00:07]} h5 {[%emt 0:00:18]} 30. Ra4 {[%emt 0:00:30]} Kf5 {[%emt 0:00:17]} 31. Ra5+ {[%emt 0:01:03]} Kg4 {[%emt 0:00:17]} 32. Ra7 {[%emt 0:00:33]} g5 {[%emt 0:00:17]} 33. Kg2 {[%emt 0:00:14]} h4 {[%emt 0:00:12]} 34. h3+ {[%emt 0:00:25]} Kf5 {[%emt 0:00:19]} 35. g4+ {[%emt 0:00:59]} Kf4 {[%emt 0:00:16]} 36. Ra5 {[%emt 0:00:41]} e3 {[%emt 0:00:46]} 37. fxe3+ {[%emt 0:00:43]} Rxe3 {[%emt 0:00:12]} 38. Rf5+ {[%emt 0:00:06]} Ke4 {[%emt 0:00:18]} 39. a4 {[%emt 0:00:24]} Rg3+ {[%emt 0:00:22]} 40. Kh2 {[%emt 0:00:13]} Ra3 {[%emt 0:00:28]} 41. Rxg5 {[%emt 0:00:25]} Rxa4 {[%emt 0:00:14]} 42. Rh5 {[%emt 0:00:06]} Ra2+ {[%emt 0:00:30]} 43. Kg1 {[%emt 0:01:08]} Kf3 {[%emt 0:00:10]} 44. Rf5+ {[%emt 0:00:24]} Kg3 {[%emt 0:00:15]} 45. Rf1 {[%emt 0:00:22]} Rg2+ {[%emt 0:00:49]} 46. Kh1 {[%emt 0:00:06]} Kxh3 {[%emt 0:00:15]} 47. Rf3+ {[%emt 0:00:31]} Rg3 {[%emt 0:00:11]} 48. Rxg3+ {[%emt 0:00:05]} hxg3 {[%emt 0:00:14]} 49. g5 {[%emt 0:00:25]} Kg4 {[%emt 0:00:33]} 50. g6 {[%emt 0:00:08]} Kf3 {[%emt 0:00:10]} 51. Kg1 {[%emt 0:00:13]} g2 {[%emt 0:02:04]} 52. g7 {[%emt 0:00:06]} Kg3 {[%emt 0:00:09]} 53. g8=Q+ {[%emt 0:00:09]} Kf3 {[%emt 0:00:07]} 54. Qxg2+ {[%emt 0:00:15]} Ke3 {[%emt 0:00:07]} 55. Qg4 {[%emt 0:00:14]} Kd3 {[%emt 0:00:17]} 56. Qf4 {[%emt 0:00:13]} Ke2 {[%emt 0:00:14]} 57. Qg3 {[%emt 0:00:07]} Kd2 {[%emt 0:00:18]} 58. Qf3 {[%emt 0:00:08]} Ke1 {[%emt 0:00:14]} 59. Qf2+ {[%emt 0:00:24]} Kd1 {[%emt 0:00:12]} 60. Kg2 {[%emt 0:00:14]} Kc1 {[%emt 0:00:09]} 61. Kf3 {[%emt 0:00:14]} Kd1 {[%emt 0:00:18]} 62. Ke3 {[%emt 0:00:07]} Kc1 {[%emt 0:00:17]} 63. Kd3 {[%emt 0:00:31]} Kb1 {[%emt 0:00:24]} 64. Kc3 {[%emt 0:00:06]} Ka1 {[%emt 0:00:09]} 65. Qb2# {[%emt 0:00:06]} 1-0

[Event "DVM U10 2024"]
[Site "Duesseldorf"]
[Date "2024.12.27"]
[Round "2"]
[White "Glaser-Gallion, Leonas"]
[Black "Nordmann, Vigo"]
[Result "1/2-1/2"]
[ECO "D00"]
[WhiteElo "1000"]
[BlackElo "831"]
[Annotator "NA RC"]
[PlyCount "101"]
[EventDate "2024.12.23"]
[EventType "team-tourn"]
[EventRounds "7"]
[EventCountry "GER"]
[SourceTitle "playchess.com"]
[Source "ChessBase"]
[SourceQuality "1"]
[TimeControl "3300+5"]

1. d4 {[%emt 0:00:01]} Nf6 {[%emt 0:00:11]} 2. Nc3 {[%emt 0:00:03]} d5 {[%emt 0:00:26]} 3. Bf4 {[%emt 0:00:05]} e6 {[%emt 0:00:17]} 4. e3 {[%emt 0:00:04]} Bb4 {[%emt 0:00:27]} 5. a3 {[%emt 0:00:08]} Ba5 {[%emt 0:00:06]} 6. b4 {[%emt 0:00:07]} Bb6 {[%emt 0:00:18]} 7. a4 {[%emt 0:00:05]} a5 {[%emt 0:00:19]} 8. b5 {[%emt 0:00:15]} O-O {[%emt 0:01:17]} 9. Bd3 {[%emt 0:00:06]} c6 {[%emt 0:00:28]} 10. Nf3 {[%emt 0:01:13]} cxb5 {[%emt 0:00:08]} 11. Nxb5 {[%emt 0:00:16]} Qe7 {[%emt 0:01:20]} 12. Bd6 {[%emt 0:00:00]} Qe8 {[%emt 0:00:41]} 13. Bxf8 {[%emt 0:00:13]} Qxf8 {[%emt 0:01:11]} 14. O-O {[%emt 0:00:22]} Nc6 {[%emt 0:00:49]} 15. Qe2 {[%emt 0:00:45]} Nb4 {[%emt 0:00:27]} 16. Rab1 {[%emt 0:00:34]} Bd7 {[%emt 0:02:57]} 17. Na3 {[%emt 0:00:00]} Bxa4 {[%emt 0:00:36]} 18. c3 {[%emt 0:00:00]} Na2 {[%emt 0:00:25]} 19. Qxa2 {[%emt 0:00:00]} Bc7 {[%emt 0:01:17]} 20. Rxb7 {[%emt 0:01:11]} Bd6 {[%emt 0:00:26]} 21. Rfb1 {[%emt 0:00:36]} Bxa3 {[%emt 0:00:27]} 22. Ba6 {[%emt 0:00:41]} Rxa6 23. Rb8 Be8 {[%emt 0:01:19]} 24. Ne5 {[%emt 0:00:47]} Bd6 {[%emt 0:01:06]} 25. Qe2 {[%emt 0:00:30]} Ra7 26. Nc6 Rc7 {[%emt 0:01:47]} 27. Nxa5 {[%emt 0:00:13]} Rxc3 {[%emt 0:00:27]} 28. R8b3 {[%emt 0:02:30]} Rc8 {[%emt 0:00:46]} 29. Qa6 {[%emt 0:00:19]} Rc2 {[%emt 0:00:48]} 30. Rb6 {[%emt 0:00:57]} Ba3 {[%emt 0:00:53]} 31. R1b3 {[%emt 0:02:11]} Rc1+ {[%emt 0:00:23]} 32. Qf1 {[%emt 0:00:08]} Rxf1+ {[%emt 0:00:25]} 33. Kxf1 {[%emt 0:00:01]} Bc1 {[%emt 0:01:37]} 34. Rb8 {[%emt 0:01:22]} Bd2 {[%emt 0:00:16]} 35. Nc6 {[%emt 0:00:15]} h6 {[%emt 0:01:10]} 36. Rc8 {[%emt 0:00:10]} Kh7 {[%emt 0:00:50]} 37. Ne5 {[%emt 0:00:13]} Qd6 {[%emt 0:01:13]} 38. Rb5 {[%emt 0:01:08]} Bxb5+ {[%emt 0:00:44]} 39. Kg1 {[%emt 0:00:11]} Qa3 {[%emt 0:00:15]} 40. h4 {[%emt 0:00:32]} Qa1+ {[%emt 0:00:33]} 41. Kh2 {[%emt 0:00:08]} Qf1 {[%emt 0:00:31]} 42. Rc2 {[%emt 0:00:28]} Qxf2 {[%emt 0:00:17]} 43. Nf3 {[%emt 0:00:14]} Qxe3 {[%emt 0:00:26]} 44. Rxd2 {[%emt 0:00:16]} Qf4+ {[%emt 0:00:19]} 45. Kg1 {[%emt 0:00:19]} Ne4 {[%emt 0:03:16]} 46. Rc2 {[%emt 0:00:00]} Qe3+ {[%emt 0:00:50]} 47. Kh1 {[%emt 0:00:00]} Ng3+ {[%emt 0:01:08]} 48. Kh2 {[%emt 0:00:00]} Qf4 {[%emt 0:00:30]} 49. Rf2 {[%emt 0:01:06]} Nf1+ {[%emt 0:00:37]} 50. Kg1 {[%emt 0:00:10]} Ne3 {[%emt 0:01:11]} 51. Ng5+ {[%emt 0:00:16]} 1/2-1/2